bitfinex-derivatives/quotes_ETHF0:USTF0_20250404
["timestamp","ask_amount","ask_price","bid_price","bid_amount"]
[1743767594434,1.12439,1778.9,1778.8,1.12443]
[1743767594729,1.12439,1778.9,1778.5,3.21623384]
[1743767594730,1.12456,1778.6,1778.5,3.21623384]
[1743767595124,1.12456,1778.6,1778.5,0.00843384]
[1743767597930,1.12456,1778.6,1778.5,1.13306384]
[1743767598133,1.12456,1778.6,1778.5,0.00843384]
[1743767598334,1.12456,1778.6,1778.5,1.49983384]
[1743767599033,1.12456,1778.6,1778.5,0.00843384]
[1743767599235,4.33236,1778.6,1778.5,0.00843384]
[1743767599538,1.12482,1778.2,1778.1,5.8692]
[1743767599939,1.12482,1778.2,1778.1,1.3892]
[1743767600132,3.2078,1778.4,1777.9,5.9066]
[1743767600335,1.12494,1778.0,1777.9,1.4266]
[1743767601031,1.12494,1778.0,1777.9,2.9168]
[1743767601233,1.12478,1778.3,1778.2,1.12481]
[1743767601434,1.12488,1778.1,1778.0,4.33272]
[1743767601632,1.12488,1778.1,1778.0,4.6863]
[1743767602033,1.12487,1778.2,1778.0,1.4785]
[1743767602235,1.12485,1778.2,1778.1,1.12485]
[1743767602436,1.12484,1778.2,1778.0,9.1663]
[1743767602638,1.12484,1778.2,1778.1,1.12483]
[1743767603240,1.12479,1778.3,1778.2,1.12478]
[1743767603540,1.12473,1778.4,1778.3,1.12472]
[1743767603738,1.12465,1778.5,1778.4,1.12464]
[1743767603939,1.12465,1778.5,1778.4,2.60314]
[1743767604140,1.12465,1778.5,1778.4,5.81094]
[1743767604443,0.00843384,1778.9,1778.8,1.12444]
[1743767604742,1.12444,1778.8,1778.7,8.52485]
[1743767605238,0.00843384,1778.9,1778.8,1.12444]
[1743767605239,1.13283384,1778.9,1778.8,1.12444]
[1743767605444,0.00843384,1778.9,1778.8,5.76234]
[1743767605845,1.13281384,1778.9,1778.8,5.76234]
[1743767606142,1.13281384,1778.9,1778.8,4.6379]
[1743767606337,1.13281384,1778.9,1778.8,1.4301]
[1743767606541,1.12444,1778.8,1778.7,7.4004]
[1743767606841,3.93565,1778.8,1778.5,5.966]
[1743767607046,4.26887,1778.7,1778.4,1.4888]
[1743767607248,1.12463,1778.5,1778.4,2.61349]
[1743767607445,1.12463,1778.5,1778.4,1.4888]
[1743767607641,1.12469,1778.4,1778.3,1.3368]
[1743767607946,1.12469,1778.4,1778.3,2.8201]
[1743767608148,1.12488,1778.1,1778.0,1.4268]
[1743767608845,1.12488,1778.1,1778.0,2.55174]
[1743767609040,1.4407,1778.4,1778.2,1.12482]
[1743767609243,1.12482,1778.2,1778.1,4.33265]
[1743767609450,1.12482,1778.2,1778.1,1.4833]
[1743767611446,1.12501,1777.9,1777.8,0.00843384]
[1743767611745,1.12501,1777.9,1777.8,42.34763384]
[1743767612249,1.12501,1777.9,1777.8,40.80843384]
[1743767612446,1.12501,1777.9,1777.8,0.00843384]
[1743767612653,1.12501,1777.9,1777.8,1.13346384]
[1743767612853,1.12499,1778.0,1777.9,1.12499]
[1743767613157,1.12501,1777.9,1777.8,44.01623384]
[1743767613453,1.12495,1778.0,1777.8,40.80843384]
[1743767613645,2.8002,1778.1,1777.8,40.80843384]
[1743767613846,3.2078,1778.4,1777.8,51.30890384]
[1743767614152,1.12488,1778.1,1778.0,4.3327]
[1743767614353,1.12479,1778.3,1778.2,1.1248]
[1743767614548,1.12469,1778.4,1778.3,1.12475]
[1743767614747,1.12475,1778.3,1778.2,4.33257]
[1743767614945,1.12475,1778.4,1778.3,1.12475]
[1743767616447,1.12475,1778.3,1778.2,3.2078]
[1743767617054,1.12475,1778.3,1778.2,4.33262]
[1743767617246,0.00843384,1778.9,1778.2,5.7078]
[1743767617447,1.12449,1778.8,1778.5,3.2078]
[1743767617750,1.1245,1778.7,1778.6,8.30463]
[1743767617951,1.1245,1778.7,1778.6,7.1801]
[1743767618140,1.13286384,1778.9,1778.8,1.12444]
[1743767618453,1.12444,1778.8,1778.7,45.13227]
[1743767618646,0.00843384,1778.9,1778.8,1.12444]
[1743767619047,1.13281384,1778.9,1778.8,1.12444]
[1743767619750,0.00843384,1778.9,1778.8,1.12444]
[1743767620553,0.00843384,1778.9,1778.8,1.58509246]
[1743767620757,0.00843384,1778.9,1778.8,1.12444]
[1743767624749,1.13283384,1778.9,1778.7,45.13225]
[1743767624954,0.00843384,1778.9,1778.8,5.60144]
[1743767625255,0.00843384,1778.9,1778.7,3.2078]
[1743767625466,0.00843384,1778.9,1778.7,7.6848]
[1743767625656,1.12444,1778.8,1778.7,7.6848]
[1743767625851,1.12444,1778.8,1778.7,8.8093]
[1743767626060,1.13285384,1778.9,1778.7,8.80929]
[1743767626357,1.13281384,1778.9,1778.7,8.80924]
[1743767626557,1.13281384,1778.9,1778.7,7.6848]
[1743767626745,0.00843384,1778.9,1778.8,2.54484]
[1743767626951,1.13281384,1778.9,1778.8,2.54484]
[1743767627151,1.13281384,1778.9,1778.8,1.4204]
[1743767627559,1.13281384,1778.9,1778.8,2.54484]
[1743767627761,1.13281384,1778.9,1778.8,1.4204]
[1743767629058,1.1245,1778.7,1778.6,3.82564]
[1743767629359,1.12444,1778.8,1778.7,1.4045]
[1743767629657,1.13282384,1778.9,1778.8,1.12444]
[1743767629861,0.00843384,1778.9,1778.8,1.12444]
[1743767630461,1.3407,1779.3,1778.8,2.5]
[1743767630655,1.3407,1779.3,1778.6,16.41087177]
[1743767630656,1.12433,1779.0,1778.9,7.00484]
[1743767630860,1.12433,1779.0,1778.9,10.21264]
[1743767631061,1.3407,1779.3,1778.9,9.0883]
[1743767631263,1.12425,1779.1,1779.0,1.3025]
[1743767631461,1.12431,1779.0,1778.9,7.01328384]
[1743767631961,1.12431,1779.0,1778.9,1.41293384]
[1743767632162,1.12431,1779.0,1778.9,5.88893384]
[1743767632360,5.69385384,1779.3,1778.9,7.01327384]
[1743767632659,1.12431,1779.0,1778.9,10.22107384]
[1743767632858,1.12431,1779.0,1778.9,9.09673384]
[1743767633356,1.12431,1779.0,1778.9,5.88893384]
[1743767634262,1.12431,1779.0,1778.9,10.22106384]
[1743767634462,1.12429,1779.1,1779.0,1.1243]
[1743767634757,1.12429,1779.1,1779.0,2.65361]
[1743767635064,1.12429,1779.1,1779.0,1.5293]
[1743767635763,1.12423,1779.2,1779.1,1.12425]
[1743767636265,0.00843384,1779.3,1779.2,1.12419]
[1743767636561,1.13255384,1779.3,1779.2,8.50149]
[1743767636762,1.13255384,1779.3,1779.2,7.3773]
[1743767637162,1.13255384,1779.3,1779.2,7.11619]
[1743767637352,0.00843384,1779.3,1779.2,7.11619]
[1743767637664,1.13255384,1779.3,1779.2,7.11619]
[1743767639264,0.00843384,1779.3,1779.2,7.11619]
[1743767639855,1.13255384,1779.3,1779.2,7.11619]
[1743767640465,1.13255384,1779.3,1779.2,5.992]
[1743767640966,1.13255384,1779.3,1779.2,7.11619]
[1743767641353,0.00843384,1779.3,1779.2,7.11619]
[1743767642357,0.00843384,1779.3,1779.2,13.08219]
[1743767642557,0.00843384,1779.3,1779.2,15.58219]
[1743767642770,0.00843384,1779.3,1779.2,13.08219]
[1743767646268,0.00843384,1779.3,1779.2,15.58219]
[1743767646472,1.3716,1779.8,1779.7,1.12387]
[1743767646668,1.12382,1779.8,1779.7,1.12387]
[1743767646969,2.57131,1780.0,1779.6,13.40901]
[1743767647170,1.4476,1780.0,1779.9,4.33154]
[1743767647372,2.55158109,1780.0,1779.9,8.80454]
[1743767647767,1.42790109,1780.0,1779.9,8.80454]
[1743767648273,2.44112,1780.1,1780.0,1.12368]
[1743767648467,2.44112,1780.1,1780.0,2.55978]
[1743767648962,2.44112,1780.1,1780.0,1.4361]
[1743767649160,1.12368,1780.0,1779.9,0.00843384]
[1743767650276,1.12368,1780.0,1779.9,1.13217384]
[1743767650472,2.52078,1780.0,1779.9,1.13217384]
[1743767650674,2.52078,1780.0,1779.9,0.00843384]
[1743767652179,5.02078,1780.0,1779.9,0.00843384]
[1743767652681,1.124,1779.5,1779.3,8.80288]
[1743767652881,2.80976,1779.7,1779.3,10.31008109]
[1743767652882,2.52116,1779.4,1779.3,10.31008109]
[1743767653078,1.3971,1779.4,1779.3,10.31008109]
[1743767653275,2.7063,1779.6,1779.5,1.124]
[1743767653479,2.81751384,1780.1,1779.8,1.12379]
[1743767653680,1.37180109,1779.9,1779.8,1.12379]
[1743767653877,2.49557109,1779.9,1779.8,1.4185]
[1743767654275,1.12374,1779.9,1779.8,1.4185]
[1743767654680,1.12387,1779.7,1779.6,8.30018]
[1743767654877,1.12387,1779.7,1779.6,9.71868]
[1743767655283,1.12387,1779.7,1779.6,8.5948]
[1743767656287,1.12387,1779.7,1779.6,9.71873]
[1743767657081,1.12387,1779.7,1779.6,9.71869]
[1743767657486,1.12372,1780.0,1779.9,1.12373]
[1743767657679,1.12372,1780.0,1779.6,49.3948]
[1743767657680,8.77539384,1780.1,1779.7,3.2078]
[1743767657881,1.1238,1779.9,1779.8,1.51280109]
[1743767658483,4.27022,1780.0,1779.6,47.9763]
[1743767658685,1.12387,1779.7,1779.6,49.10019]
[1743767659291,4.33167,1779.7,1779.6,40.8]
[1743767659494,1.124,1779.5,1779.4,0.00843384]
[1743767659787,4.3318,1779.5,1779.4,0.00843384]
[1743767659990,6.8318,1779.5,1779.4,0.00843384]
[1743767660291,8.2286,1779.5,1779.4,0.00843384]
[1743767661182,8.2286,1779.5,1779.4,3.84e-06]
[1743767661379,5.7286,1779.5,1779.4,3.84e-06]
[1743767662283,2.5208,1779.5,1779.4,1.12406384]
[1743767662484,1.12399,1779.6,1779.5,1.124]
[1743767662685,1.12393,1779.6,1779.5,4.33175]
[1743767662881,1.12391,1779.7,1779.6,1.12392]
[1743767663085,4.1684,1779.9,1779.6,1.3943]
[1743767663286,1.12381,1779.8,1779.7,1.3998]
[1743767663694,0.00843384,1780.1,1779.7,1.3998]
[1743767663891,0.00843384,1780.1,1779.9,3.2078]
[1743767664093,2.53555,1780.2,1780.1,0.01126507]
[1743767664286,3.96635,1780.2,1780.1,0.01126507]
[1743767664482,1.12362,1780.1,1780.0,1.3998]
[1743767664690,1.12381,1779.8,1779.7,5.64471]
[1743767664994,1.12387,1779.7,1779.6,5.8633]
[1743767665885,1.12387,1779.7,1779.6,1.3943]
[1743767666081,1.12387,1779.7,1779.6,2.8513]
[1743767667085,1.12387,1779.7,1779.6,3.97523]
[1743767667689,0.00843,1779.9,1779.6,2.8513]
[1743767667886,1.12381,1779.8,1779.7,2.58087]
[1743767668190,1.12381,1779.8,1779.7,2.8252]
[1743767668495,0.00843,1779.9,1779.7,2.8252]
[1743767668796,1.13222,1779.9,1779.8,7.6758]
[1743767669192,1.13222,1779.9,1779.8,4.468]
[1743767669388,1.13222,1779.9,1779.7,2.8252]
[1743767669389,1.12381,1779.8,1779.7,2.8252]
[1743767669592,1.12381,1779.8,1779.7,7.2932]
[1743767669793,1.12381,1779.8,1779.7,5.925]
[1743767669993,2.54651,1779.8,1779.7,5.925]
[1743767670293,0.00843,1779.9,1779.8,1.12381]
[1743767670492,0.00843,1779.9,1779.8,4.33161]
[1743767670693,0.00843,1779.9,1779.8,3.2078]
[1743767670994,0.00843,1779.9,1779.8,4.33161]
[1743767671189,1.13217,1779.9,1779.8,4.33161]
[1743767671895,0.00843,1779.9,1779.8,4.33161]
[1743767672099,1.13217,1779.9,1779.8,4.33161]
[1743767672592,1.12381,1779.8,1779.7,1.457]
[1743767672791,4.23882,1779.8,1779.5,7.0541]
[1743767672986,1.12393,1779.6,1779.5,7.0541]
[1743767673293,1.12393,1779.6,1779.5,1.4631]
[1743767673495,1.124,1779.5,1779.4,3.84e-06]
[1743767673699,7.0642,1779.5,1779.4,3.84e-06]
[1743767674193,9.5642,1779.5,1779.4,3.84e-06]
[1743767674796,6.3564,1779.5,1779.4,3.84e-06]
[1743767674996,1.12391,1779.7,1779.4,6.01781384]
[1743767675198,1.12391,1779.7,1779.6,1.1239]
[1743767675498,1.13217,1779.9,1779.8,1.12381]
[1743767675698,0.00843,1779.9,1779.8,1.12381]
[1743767675903,0.00843,1779.9,1779.8,4.33161]
[1743767676096,0.00843,1779.9,1779.8,45.13161]
[1743767676298,1.3722,1780.3,1780.2,1.12355]
[1743767676492,1.12359,1780.2,1780.1,1.12356]
[1743767676789,1.1236,1780.2,1780.1,1.12359]
[1743767676995,1.12357,1780.2,1780.1,1.12357]
[1743767677199,5.9744,1780.4,1780.1,1.12357]
[1743767677200,3.2078,1780.8,1780.2,2.80888]
[1743767677393,2.80763,1781.0,1780.6,1.12327]
[1743767677597,2.80763,1781.0,1780.5,3.2078]
[1743767677598,1.12323,1780.8,1780.7,1.457]
[1743767678196,4.31673,1780.9,1780.5,1.12336]
[1743767678402,1.12324,1780.7,1780.6,1.457]
[1743767679496,1.12336,1780.5,1780.4,1.4291]
[1743767679697,1.12334,1780.6,1780.4,2.8861]
[1743767679897,1.12336,1780.5,1780.4,2.8861]
[1743767680799,1.12343,1780.4,1780.3,0.00843384]
[1743767681298,1.12327,1780.7,1780.5,1.12334]
[1743767681502,1.12324,1780.7,1780.6,1.4162]
[1743767681702,2.62974,1780.7,1780.6,1.4162]
[1743767683003,1.12343,1780.4,1780.3,1.13190384]
[1743767683896,1.12343,1780.4,1780.3,1.13192384]
[1743767684297,1.12343,1780.4,1780.3,0.00843384]
[1743767685498,1.12341,1780.5,1780.3,0.00843384]
[1743767685707,1.12343,1780.4,1780.3,0.00843384]
[1743767689299,1.12343,1780.4,1780.3,3.21623384]
[1743767690202,1.12343,1780.4,1780.3,0.00843384]
[1743767690801,1.12343,1780.4,1780.3,1.52153384]
[1743767692906,1.12343,1780.4,1780.3,2.64502384]
[1743767693108,1.12343,1780.4,1780.3,5.85282384]
[1743767693405,1.12295,1781.2,1780.8,1.12318]
[1743767693603,1.4866,1781.3,1781.0,1.12302]
[1743767693804,1.12299,1781.1,1781.0,1.4864]
[1743767694700,1.12305,1781.0,1780.9,40.8]
[1743767695301,1.12305,1781.0,1780.9,41.92311]
[1743767695501,1.12305,1781.0,1780.9,1.12311]
[1743767696408,2.60962,1781.1,1781.0,1.12305]
[1743767697411,1.12305,1781.0,1780.9,2.65666]
[1743767697613,2.57545,1781.0,1780.9,2.65666]
[1743767697804,1.12305,1781.0,1780.9,2.65666]
[1743767698000,2.7769,1781.2,1781.0,1.12304]
[1743767698201,1.12301,1781.1,1781.0,2.65664]
[1743767698414,1.12299,1781.1,1781.0,2.65664]
[1743767698606,1.12299,1781.1,1781.0,1.5336]
[1743767698907,1.12284,1781.4,1781.0,4.7414]
[1743767699111,1.4255,1781.7,1781.3,3.2078]
[1743767699419,3.2078,1782.2,1781.5,3.2078]
[1743767699608,5.40929891,1782.8,1781.8,3.2078]
[1743767699609,1.5327,1782.3,1781.8,3.2078]
[1743767699806,3.2078,1782.2,1781.9,5.8495]
[1743767700108,1.12244,1782.0,1781.8,3.2078]
[1743767700317,1.5327,1782.1,1781.8,3.2078]
[1743767700609,1.12255,1781.8,1781.6,10.19344]
[1743767700816,1.12255,1781.8,1781.7,1.3885]
[1743767701910,1.12273,1781.5,1781.4,7.6678]
[1743767702104,1.12273,1781.5,1781.4,9.1616]
[1743767702499,1.12273,1781.5,1781.3,1.39133384]
[1743767702500,1.1228,1781.4,1781.3,0.00843384]
[1743767702701,10.2187,1781.4,1781.3,3.84e-06]
[1743767702903,8.2587,1781.4,1781.3,3.84e-06]
[1743767703911,2.5509,1781.4,1781.3,3.84e-06]
[1743767704612,1.1228,1781.4,1781.3,3.84e-06]
[1743767705905,1.13118,1781.5,1781.3,4.33061384]
[1743767706113,1.13118,1781.5,1781.4,1.4236]
[1743767707307,1.1228,1781.4,1781.3,3.84e-06]
[1743767707503,1.1228,1781.4,1781.3,1.42360384]
[1743767707714,1.1228,1781.4,1781.3,4.63140384]
[1743767708014,1.1228,1781.4,1781.3,1.42360384]
[1743767708413,2.5802,1781.4,1781.3,1.42360384]
[1743767708609,0.00843,1781.5,1781.3,1.42360384]
[1743767708815,0.00843,1781.5,1781.3,4.63140384]
[1743767709011,1.13116,1781.5,1781.4,1.4518]
[1743767709216,1.1228,1781.4,1781.3,3.84e-06]
[1743767709409,2.5802,1781.4,1781.3,3.84e-06]
[1743767710410,3.9144,1781.4,1781.3,3.84e-06]
[1743767710812,9.6222,1781.4,1781.3,3.84e-06]
[1743767711216,3.9144,1781.4,1781.3,3.84e-06]
[1743767711517,6.4144,1781.4,1781.3,3.84e-06]
[1743767711915,9.6222,1781.4,1781.3,3.84e-06]
[1743767714915,7.1222,1781.4,1781.3,3.84e-06]
[1743767715414,9.6222,1781.4,1781.3,3.84e-06]
[1743767717418,7.1222,1781.4,1781.3,3.84e-06]
[1743767718213,1.1228,1781.4,1781.3,3.84e-06]
[1743767718621,1.1228,1781.4,1781.3,1.41850384]
[1743767719223,1.13121,1781.5,1781.4,1.1228]
[1743767719417,1.13121,1781.5,1781.4,4.456]
[1743767720424,2.65141,1781.5,1781.4,4.456]
[1743767720720,1.1228,1781.4,1781.3,1.41850384]
[1743767721022,2.643,1781.4,1781.3,1.41850384]
[1743767721426,2.643,1781.4,1781.3,3.84e-06]
[1743767721724,5.143,1781.4,1781.3,3.84e-06]
[1743767722020,3.946,1781.4,1781.3,3.84e-06]
[1743767722425,6.446,1781.4,1781.3,3.84e-06]
[1743767726428,11.85529891,1781.4,1781.3,3.84e-06]
[1743767729124,11.85529891,1781.4,1780.4,35.379]
[1743767729125,1.12336,1780.5,1780.4,35.379]
[1743767729330,1.14312891,1780.4,1780.3,7.2066]
[1743767729528,1.14312891,1780.4,1780.3,2.7516]
[1743767729730,1.12343,1780.4,1780.3,1.33750109]
[1743767730427,4.33123,1780.4,1780.3,1.33750109]
[1743767730623,1.12349,1780.3,1780.2,0.00843384]
[1743767731833,4.33129,1780.3,1780.2,0.00843384]
[1743767732929,6.83129,1780.3,1780.2,3.84e-06]
[1743767733528,9.63949,1780.3,1780.2,3.84e-06]
[1743767734632,4.33129,1780.3,1780.2,3.84e-06]
[1743767734830,1.12349,1780.3,1780.2,3.84e-06]
[1743767735333,1.12349,1780.3,1780.2,1.51320384]
[1743767736637,4.33129,1780.3,1780.2,1.51320384]
[1743767737239,4.33129,1780.3,1780.2,0.30904384]
[1743767737435,1.12387,1779.7,1779.6,40.8]
[1743767737640,1.12387,1779.7,1779.6,2.7438]
[1743767739741,11.49564,1780.2,1779.6,2.7438]
[1743767739940,1.12379,1779.9,1779.6,5.55363]
[1743767740246,1.12379,1779.9,1779.8,1.12376]
[1743767740540,1.12379,1779.9,1779.8,5.57876]
[1743767740844,1.12379,1779.9,1779.8,8.4974]
[1743767741242,1.12379,1779.9,1779.8,49.2974]
[1743767741646,1.12379,1779.9,1779.8,50.42121]
[1743767742449,1.12379,1779.9,1779.8,49.2974]
[1743767742945,1.12379,1779.9,1779.8,50.42121]
[1743767743146,1.12379,1779.9,1779.8,49.2974]
[1743767743345,1.12374,1779.9,1779.8,50.42116]
[1743767743543,1.12374,1779.9,1779.8,42.3424]
[1743767743747,1.12374,1779.9,1779.8,1.5424]
[1743767744334,1.12374,1779.9,1779.8,42.3424]
[1743767744539,8.62553275,1780.5,1779.8,44.8424]
[1743767744747,1.1236,1780.2,1780.1,1.12358]
[1743767744950,1.1236,1780.2,1780.1,4.33138]
[1743767745150,1.1236,1780.2,1780.1,3.2078]
[1743767745446,1.1236,1780.2,1780.1,4.673]
[1743767745651,1.1236,1780.2,1780.1,5.79662]
[1743767746853,0.00843384,1780.5,1780.1,7.48199]
[1743767747054,1.12346,1780.4,1780.3,4.33126]
[1743767747254,1.12346,1780.4,1780.3,8.78526]
[1743767747562,1.13185384,1780.5,1780.4,1.12343]
[1743767747753,1.13185384,1780.5,1780.4,5.30323]
[1743767747947,1.13185384,1780.5,1780.4,4.1798]
[1743767748141,1.13185384,1780.5,1780.4,5.30323]
[1743767748545,1.13185384,1780.5,1780.4,4.1798]
[1743767748747,1.12343,1780.4,1780.3,4.453]
[1743767748945,1.12355,1780.2,1780.1,2.8927]
[1743767749355,1.4193,1780.3,1779.9,1.406]
[1743767749555,1.12368,1780.0,1779.9,1.4884]
[1743767750055,2.54298,1780.0,1779.9,1.4884]
[1743767751049,1.12374,1779.9,1779.8,2.52811]
[1743767751246,1.12374,1779.9,1779.8,2.50841109]
[1743767751446,1.12374,1779.9,1779.8,1.38460109]
[1743767751954,1.12374,1779.9,1779.8,2.50841109]
[1743767752351,1.12374,1779.9,1779.8,11.59961109]
[1743767753055,1.12374,1779.9,1779.8,11.59955109]
[1743767753255,1.5042,1780.3,1779.8,12.97580109]
[1743767753455,1.10395109,1780.1,1780.0,1.12363]
[1743767753855,1.10395109,1780.1,1780.0,4.33143]
[1743767754051,0.00843384,1780.5,1780.4,1.12343]
[1743767754253,1.4801,1781.1,1780.5,2.80839]
[1743767754553,2.80686,1781.5,1781.1,1.12293]
[1743767754759,1.12292,1781.2,1781.1,1.4]
[1743767755960,1.12299,1781.1,1781.0,0.00843384]
[1743767756658,2.60309,1781.1,1781.0,0.00843384]
[1743767756850,3.99069,1781.1,1781.0,0.00843384]
[1743767757660,6.49069,1781.1,1781.0,0.00843384]
[1743767760158,3.99069,1781.1,1781.0,0.00843384]
[1743767760456,1.12299,1781.1,1781.0,0.00843384]
[1743767761654,1.44263384,1781.3,1781.1,1.12296]
[1743767761859,1.12292,1781.2,1781.1,1.12296]
[1743767762060,0.00843384,1781.3,1781.2,1.12292]
[1743767762363,1.12292,1781.2,1781.1,7.00114]
[1743767762761,1.12292,1781.2,1781.1,5.8782]
[1743767763267,1.12299,1781.1,1781.0,0.00843384]
[1743767763565,5.76309,1781.1,1781.0,0.00843384]
[1743767763765,7.1401,1781.1,1780.5,5.9534]
[1743767764063,1.1233,1780.6,1780.5,1.29770109]
[1743767764565,1.1233,1780.6,1780.5,4.50550109]
[1743767764766,1.1233,1780.6,1780.5,1.29770109]
[1743767765463,1.12336,1780.5,1780.4,0.00843384]
[1743767766061,1.12336,1780.5,1780.4,1.13186384]
[1743767766263,1.12336,1780.5,1780.4,0.00843384]
[1743767766564,2.9097,1780.7,1780.6,1.1233]
[1743767766565,1.12329,1780.7,1780.6,1.1233]
[1743767766766,1.12329,1780.7,1780.5,3.2078]
[1743767766967,1.12328,1780.7,1780.6,1.12328]
[1743767767157,1.12328,1780.7,1780.6,1.3909]
[1743767767358,1.12328,1780.7,1780.6,2.5142]
[1743767767761,1.12328,1780.7,1780.6,1.3909]
[1743767768665,1.12328,1780.7,1780.6,2.5142]
[1743767769256,1.12324,1780.7,1780.6,2.5142]
[1743767769462,1.12324,1780.7,1780.6,1.3909]
[1743767770060,1.5231,1780.9,1780.6,1.3909]
[1743767770257,1.12317,1780.9,1780.8,1.12315]
[1743767770462,2.80747,1781.1,1780.6,8.64715]
[1743767770666,2.80779,1780.9,1780.6,5.8389]
[1743767770861,1.12324,1780.7,1780.6,6.94244109]
[1743767772166,2.64632,1780.8,1780.7,1.12324]
[1743767772668,1.12324,1780.7,1780.6,6.94245109]
[1743767773067,1.12324,1780.7,1780.6,5.81920109]
[1743767773268,1.12324,1780.7,1780.6,6.94250109]
[1743767773467,1.12324,1780.7,1780.6,5.81920109]
[1743767773766,1.12329,1780.7,1780.6,1.12327]
[1743767773962,5.8909,1781.2,1780.7,1.12324]
[1743767774163,1.5144,1781.2,1780.9,2.80777]
[1743767774365,0.00843384,1781.3,1781.2,1.12292]
[1743767774565,4.32095,1781.7,1781.1,3.2078]
[1743767774768,1.12282,1781.4,1781.3,1.12284]
[1743767774965,1.12286,1781.3,1781.2,1.12288]
[1743767775273,1.12292,1781.2,1781.1,4.33075]
[1743767775464,1.12292,1781.2,1781.1,1.12299]
[1743767775664,1.12292,1781.2,1781.1,3.2078]
[1743767775863,1.12299,1781.1,1781.0,6.92384384]
[1743767776469,1.4166,1781.2,1781.1,1.12299]
[1743767776665,2.53952,1781.2,1781.1,4.33079]
[1743767776866,2.53952,1781.2,1781.1,5.80289]
[1743767777167,1.12299,1781.1,1781.0,0.00843384]
[1743767777370,2.53959,1781.1,1781.0,0.00843384]
[1743767778059,0.00843384,1781.3,1781.2,1.12292]
[1743767778464,2.80655,1781.7,1781.2,1.12292]
[1743767778465,3.2078,1781.9,1781.3,2.80715]
[1743767778671,2.5493,1781.6,1781.5,1.12271]
[1743767778871,1.12273,1781.5,1781.4,5.9389]
[1743767779771,1.12273,1781.5,1781.4,4.445]
[1743767780171,2.54933,1781.5,1781.4,4.445]
[1743767780374,1.12292,1781.2,1781.1,5.9457]
[1743767781166,1.12292,1781.2,1781.1,7.3448]
[1743767782169,1.12292,1781.2,1781.1,8.46776]
[1743767782473,1.12292,1781.2,1781.1,7.3448]
[1743767782667,1.12292,1781.2,1781.1,4.6069]
[1743767783964,1.12299,1781.1,1781.0,35.38843384]
[1743767784165,1.12324,1780.7,1780.6,4.33105]
[1743767784475,1.12318,1780.9,1780.8,1.12315]
[1743767784670,1.4986,1781.0,1780.8,1.12315]
[1743767784671,2.62171,1781.0,1780.9,1.12311]
[1743767784872,1.12311,1781.0,1780.9,3.89101]
[1743767785170,1.12299,1781.2,1781.1,1.12296]
[1743767785874,1.12299,1781.2,1781.1,1.3932]
[1743767788470,1.12299,1781.2,1781.1,2.51619]
[1743767788975,1.12299,1781.2,1781.1,1.3932]
[1743767790577,1.12305,1781.0,1780.9,3.81866]
[1743767790777,1.12305,1781.0,1780.9,5.33046]
[1743767792377,2.5874,1781.1,1781.0,1.12305]
[1743767792578,1.123,1781.1,1781.0,5.84265]
[1743767793077,2.58739,1781.2,1781.1,1.12299]
[1743767793274,2.58739,1781.2,1781.1,2.61639]
[1743767793575,2.58739,1781.2,1781.1,1.4934]
[1743767794478,2.58739,1781.2,1781.1,2.61639]
[1743767794677,2.58739,1781.2,1781.1,1.4934]
[1743767795383,1.12305,1781.0,1780.9,3.81869]
[1743767795572,1.12305,1781.0,1780.9,5.31209]
[1743767795976,1.12305,1781.0,1780.9,4.189]
[1743767796173,2.53097,1781.1,1781.0,1.12305]
[1743767796379,1.12305,1781.0,1780.9,2.62008]
[1743767797279,1.12305,1781.0,1780.9,1.497]
[1743767797982,1.12311,1780.9,1780.8,10.27741384]
[1743767798181,1.12311,1780.9,1780.8,5.83641384]
[1743767799683,1.12311,1780.9,1780.8,1.50543384]
[1743767799877,4.33091,1780.9,1780.8,0.00843384]
[1743767800082,7.06251,1780.9,1780.8,0.00843384]
[1743767800283,9.56251,1780.9,1780.8,0.00843384]
[1743767800481,1.12336,1780.5,1780.4,4.346]
[1743767800683,1.12355,1780.2,1780.0,4.33143]
[1743767800879,1.12355,1780.2,1780.1,41.38600394]
[1743767801086,1.12355,1780.2,1780.1,40.93962]
[1743767801481,1.12355,1780.2,1780.1,39.816]
[1743767801681,1.12355,1780.2,1780.1,40.93962]
[1743767801883,1.12355,1780.2,1780.1,39.816]
[1743767802184,1.12355,1780.2,1780.1,40.93962]
[1743767802784,1.12355,1780.2,1780.1,39.816]
[1743767803283,1.12355,1780.2,1780.1,40.93962]
[1743767803787,1.12355,1780.2,1780.1,41.3004]
[1743767805183,1.12355,1780.2,1780.1,36.8604]
[1743767805688,1.12355,1780.2,1780.1,37.98402]
[1743767805890,1.12355,1780.2,1780.1,36.8604]
[1743767806190,0.00843384,1780.3,1780.2,1.12355]
[1743767806382,2.80734,1781.2,1780.2,13.1505]
[1743767806581,1.12318,1780.9,1780.6,6.01596]
[1743767806785,1.12318,1780.8,1780.7,47.74648]
[1743767806983,1.12318,1780.8,1780.7,49.22318]
[1743767808291,1.13160384,1780.9,1780.8,1.12318]
[1743767808593,1.11190493,1780.9,1780.8,1.12318]
[1743767809482,1.12318,1780.8,1780.7,49.22319]
[1743767809682,1.12317,1780.9,1780.8,1.12316]
[1743767809883,1.10347109,1780.9,1780.8,2.51156]
[1743767810185,1.12301,1781.1,1781.0,1.12305]
[1743767810383,2.80701,1781.4,1781.0,7.6458]
[1743767810691,1.12292,1781.2,1781.1,1.4449]
[1743767811087,2.52852,1781.2,1781.1,1.4449]
[1743767811396,1.12292,1781.2,1781.1,2.56789]
[1743767811594,5.66632,1781.4,1781.1,2.56789]
[1743767811595,1.12288,1781.3,1781.2,1.12288]
[1743767811892,1.12281,1781.4,1781.3,1.1228]